Workbook

Sheet Bonds
A1: Namn | B1: ISIN | C1: Kupong | D1: Köp | E1: Sälj | F1: Slutdat | G1: Price | H1: Time to maturity | I1: StartDate | J1: Between bonds | K1: Spot rate now | L1: Face value | M1: Convention
A2: RGKB 1046 | B2: SE0000909640 | C2: =5.5/100 -> 0.055 | D2: =1.06/100 -> 0.0106 | E2: 1.06 | F2: 2012-10-08 | G2: =PRICE(I2,Tabell1[[#This Row],[Slutdat]],Tabell1[[#This Row],[Kupong]],Tabell1[[#This Row],[Köp]],100,1) -> 103.684028 | H2: =DAYS360(I2,F2) -> 302 | I2: 2011-12-06 | K2: 0.012 | L2: 100 | M2: 360
A3: RGKB 1055 | B3: SE0004194025 | C3: =1.5/100 -> 0.015 | D3: =0.775/100 -> 0.00775 | E3: 0.79 | F3: 2013-08-30 | G3: =PRICE(I3,Tabell1[[#This Row],[Slutdat]],Tabell1[[#This Row],[Kupong]],Tabell1[[#This Row],[Köp]],100,1) -> 101.2423521 | H3: =DAYS360(I3,F3) -> 624 | I3: 2011-12-06 | J3: =DAYS360(F2,Tabell1[[#This Row],[Slutdat]]) -> 322 | L3: 100 | M3: 360
A4: RGKB 1041 | B4: SE0000412389 | C4: =6.75/100 -> 0.0675 | D4: =0.89/100 -> 0.0089 | E4: 0.875 | F4: 2014-05-05 | G4: =PRICE(I4,Tabell1[[#This Row],[Slutdat]],Tabell1[[#This Row],[Kupong]],Tabell1[[#This Row],[Köp]],100,1) -> 113.9260191 | H4: =DAYS360(I4,F4) -> 869 | I4: 2011-12-06 | J4: =DAYS360(F3,Tabell1[[#This Row],[Slutdat]]) -> 245 | L4: 100 | M4: 360
A5: RGKB 1049 | B5: SE0001250135 | C5: =4.5/100 -> 0.045 | D5: =0.99/100 -> 0.0099 | E5: 0.976 | F5: 2015-08-12 | G5: =PRICE(I5,Tabell1[[#This Row],[Slutdat]],Tabell1[[#This Row],[Kupong]],Tabell1[[#This Row],[Köp]],100,1) -> 112.6295212 | H5: 1326 | I5: 2011-12-06 | J5: =DAYS360(F4,Tabell1[[#This Row],[Slutdat]]) -> 457 | L5: 100 | M5: 360
A6: RGKB 1050 | B6: SE0001517699 | C6: =3/100 -> 0.03 | D6: =1.135/100 -> 0.01135 | E6: 1.122 | F6: 2016-07-12 | G6: =PRICE(I6,Tabell1[[#This Row],[Slutdat]],Tabell1[[#This Row],[Kupong]],Tabell1[[#This Row],[Köp]],100,1) -> 108.3089618 | H6: 1656 | I6: 2011-12-06 | J6: =DAYS360(F5,Tabell1[[#This Row],[Slutdat]]) -> 330 | L6: 100 | M6: 360
A7: RGKB 1051 | B7: SE0001811399 | C7: =3.75/100 -> 0.0375 | D7: =1.35/100 -> 0.0135 | E7: 1.337 | F7: 2017-08-12 | G7: =PRICE(I7,Tabell1[[#This Row],[Slutdat]],Tabell1[[#This Row],[Kupong]],Tabell1[[#This Row],[Köp]],100,1) -> 113.0398969 | H7: 2046 | I7: 2011-12-06 | J7: =DAYS360(F6,Tabell1[[#This Row],[Slutdat]]) -> 390 | L7: 100 | M7: 360
A8: RGKB 1052 | B8: SE0002241083 | C8: =4.25/100 -> 0.0425 | D8: =1.525/100 -> 0.01525 | E8: 1.517 | F8: 2019-03-12 | G8: =PRICE(I8,Tabell1[[#This Row],[Slutdat]],Tabell1[[#This Row],[Kupong]],Tabell1[[#This Row],[Köp]],100,1) -> 118.6037757 | H8: 2616 | I8: 2011-12-06 | J8: =DAYS360(F7,Tabell1[[#This Row],[Slutdat]]) -> 570 | L8: 100 | M8: 360
A9: RGKB 1047 | B9: SE0001149311 | C9: =5/100 -> 0.05 | D9: =1.68/100 -> 0.0168 | E9: 1.66 | F9: 2020-03-30 | G9: =PRICE(I9,Tabell1[[#This Row],[Slutdat]],Tabell1[[#This Row],[Kupong]],Tabell1[[#This Row],[Köp]],100,1) -> 125.5605917 | H9: 2994 | I9: 2011-12-06 | J9: =DAYS360(F8,Tabell1[[#This Row],[Slutdat]]) -> 378 | L9: 100 | M9: 360
A10: RGKB 1054 | B10: SE0003784461 | C10: =3.5/100 -> 0.035 | D10: =1.765/100 -> 0.01765 | E10: 1.75 | F10: 2022-06-01 | G10: =PRICE(I10,Tabell1[[#This Row],[Slutdat]],Tabell1[[#This Row],[Kupong]],Tabell1[[#This Row],[Köp]],100,1) -> 116.469386 | H10: 3775 | I10: 2011-12-06 | J10: =DAYS360(F9,Tabell1[[#This Row],[Slutdat]]) -> 781 | L10: 100 | M10: 360
A11: RGKB 1053 | B11: SE0002829192 | C11: =3.5/100 -> 0.035 | D11: =2.205/100 -> 0.02205 | E11: 2.165 | F11: 2039-03-30 | G11: =PRICE(I11,Tabell1[[#This Row],[Slutdat]],Tabell1[[#This Row],[Kupong]],Tabell1[[#This Row],[Köp]],100,1) -> 126.3540415 | H11: 9834 | I11: 2011-12-06 | J11: =DAYS360(F10,Tabell1[[#This Row],[Slutdat]]) -> 6059 | L11: 100 | M11: 360
F15: Interest rate curve
G16: 0.012
F17: 2012-03-12 | G17: =interpol(G16,$G$25,F16,$F$25,F17) -> 0.02083314109
F18: 2012-03-30 | G18: =interpol(G17,$G$25,F17,$F$25,F18) -> 0.02083707742
F19: 2012-05-05 | G19: =interpol(G18,$G$25,F18,$F$25,F19) -> 0.02084473141
F20: 2012-06-01 | G20: 0.02085041723
F21: 2012-07-12 | G21: 0.02085938333
F22: 2012-08-12 | G22: 0.0208659439
F23: 2012-08-12 | G23: 0.0208659439
F24: 2012-08-30 | G24: 0.02086988023
F25: 2012-10-08 | G25: 0.02087819028
F26: 2013-03-12 | G26: =interpol(G25,$G$33,F25,$F$33,F26) -> 0.01567735597
F27: 2013-03-30 | G27: =interpol(G26,$G$33,F26,$F$33,F27) -> 0.01506946624
F28: 2013-05-05 | G28: =interpol(G27,$G$33,F27,$F$33,F28) -> 0.01388745844
F29: 2013-06-01 | G29: =interpol(G28,$G$33,F28,$F$33,F29) -> 0.01300939551
F30: 2013-07-12 | G30: 0.0116247578
F31: 2013-08-12 | G31: =interpol(G30,$G$33,F30,$F$33,F31) -> 0.01061160826
F32: 2013-08-12 | G32: =interpol(G31,$G$33,F31,$F$33,F32) -> 0.01061160826
F33: 2013-08-30 | G33: 0.01000371854
F34: 2014-03-12 | G34: =interpol(G33,$G$36,F33,$F$36,F34) -> 0.02166146185
F35: 2014-03-30 | G35: =interpol(G34,$G$36,F34,$F$36,F35) -> 0.02275437529
F36: 2014-05-05 | G36: 0.02487948474
F37: 2014-06-01 | G37: =interpol(G36,$G$33,F36,$F$33,F37) -> 0.02645813748
F38: 2014-07-12 | G38: =interpol(G36,G37,F36,F37,F38) -> 0.02894755142
F39: 2014-08-12 | G39: 0.03076907381
F40: 2014-08-12 | G40: =interpol(G38,G39,F38,F39,F40) -> 0.03076907381
F41: 2015-03-12 | G41: =interpol(G40,$G$46,F40,$F$46,F41) -> 0.02044632684
F42: 2015-03-30 | G42: =interpol(G41,$G$46,F41,$F$46,F42) -> 0.01956151996
F43: 2015-06-01 | G43: =interpol(G42,$G$46,F42,$F$46,F43) -> 0.01656300774
F44: 2015-07-12 | G44: =interpol(G43,$G$46,F43,$F$46,F44) -> 0.01454761428
F45: 2015-08-12 | G45: 0.01307293614
F46: 2015-08-12 | G46: 0.01307293614
F47: 2016-03-12 | G47: =interpol(G46,$G$50,F46,$F$50,F47) -> 0.01345402977
F48: 2016-03-30 | G48: =interpol(G47,$G$50,F47,$F$50,F48) -> 0.01348669493
F49: 2016-06-01 | G49: 0.01359739356
F50: 2016-07-12 | G50: 0.01367179755
F51: 2016-08-12 | G51: =interpol(G49,G50,F50,F51,F52) -> 0.0141926255
F52: 2017-03-12 | G52: =interpol(G51,$G$55,F51,$F$55,F52) -> 0.01490450493
F53: 2017-03-30 | G53: =interpol(G52,$G$55,F52,$F$55,F53) -> 0.01496552317
F54: 2017-06-01 | G54: 0.01517230719
F55: 2017-08-12 | G55: 0.01541299024
F56: 2018-03-12 | G56: =interpol(G54,G55,F54,F55,F56) -> 0.01612486966
F57: 2018-03-30 | G57: =interpol(G56,$G$59,F56,$F$59,F57) -> 0.01627440323
F58: 2018-06-01 | G58: =interpol(G57,$G$59,F57,$F$59,F58) -> 0.01678115587
F59: 2019-03-12 | G59: 0.01911554097
F60: 2019-03-30 | G60: 0.01911554097
F61: 2019-06-01 | G61: 0.01911554097
F62: 2020-03-30 | G62: 0.01568311994
F63: 2020-06-01 | G63: =interpol(G61,G62,F61,F62,F63) -> 0.01498286013
F64: 2021-03-30 | G64: =interpol(G62,G63,F62,F63,F64) -> 0.0115504391
F65: 2021-06-01 | G65: =interpol(G63,G64,F63,F64,F65) -> 0.01085017929
F66: 2022-03-30 | G66: =interpol(G64,G65,F64,F65,F66) -> 0.007417758265
F67: 2022-06-01 | G67: 0.02030127109
F68: 2023-03-30 | G68: =interpol(G67,$G$84,F67,$F$84,F68) -> 0.01992960743
F69: 2024-03-30 | G69: =interpol(G68,$G$84,F68,$F$84,F69) -> 0.01948211942
F70: 2025-03-30 | G70: 0.01903463141
F71: 2026-03-30 | G71: 0.0185871434
F72: 2027-03-30 | G72: 0.01813965538
F73: 2028-03-30 | G73: 0.01769216737
F74: 2029-03-30 | G74: 0.01724467936
F75: 2030-03-30 | G75: 0.01679719135
F76: 2031-03-30 | G76: 0.01634970333
F77: 2032-03-30 | G77: 0.01590221532
F78: 2033-03-30 | G78: 0.01545472731
F79: 2034-03-30 | G79: =interpol(G78,$G$84,F78,$F$84,F79) -> 0.0150072393
F80: 2035-03-30 | G80: 0.01455975128
F81: 2036-03-30 | G81: 0.01411226327
F82: 2037-03-30 | G82: 0.01366477526
F83: 2038-03-30 | G83: 0.01321728725
F84: 2039-03-30 | G84: 0.01276979923

Sheet Sheet1
A1: Interest rate curve | B1: Rates | D1: Time
B2: Spot | C2: Forward | D2: to Maturity | E2: Discount Factors
A3: 2012-03-12 | B3: 0.02083314109 | C3: 0.02083314109 | D3: =DAYS360($B$74,A3)/360 -> 0.2666666667 | E3: =1/(1+B3)^D3 -> 0.9945166623
A4: 2012-03-30 | B4: 0.02083707742 | C4: =((1+B4)^(DAYS360($B$74,A4)/360)/(1+B3)^(DAYS360($B$74,A3)/360))^(1/(DAYS360(A3,A4)/360))-1 -> 0.02085807148 | D4: 0.3166666667 | E4: =1/(1+B4)^D4 -> 0.9934906757
A5: 2012-05-05 | B5: 0.02084473141 | C5: =((1+B5)^(DAYS360($B$74,A5)/360)/(1+B4)^(DAYS360($B$74,A4)/360))^(1/(DAYS360(A4,A5)/360))-1 -> 0.02086966195 | D5: 0.4138888889 | E5: 0.9914976362
A6: 2012-06-01 | B6: 0.02085041723 | C6: =((1+B6)^(DAYS360($B$74,A6)/360)/(1+B5)^(DAYS360($B$74,A5)/360))^(1/(DAYS360(A5,A6)/360))-1 -> 0.02088300197 | D6: 0.4861111111 | E6: 0.9900187469
A7: 2012-07-12 | B7: 0.02085938333 | C7: =((1+B7)^(DAYS360($B$74,A7)/360)/(1+B6)^(DAYS360($B$74,A6)/360))^(1/(DAYS360(A6,A7)/360))-1 -> 0.02089765417 | D7: 0.6 | E7: 0.9876895185
A8: 2012-08-12 | B8: 0.0208659439 | C8: =((1+B8)^(DAYS360($B$74,A8)/360)/(1+B7)^(DAYS360($B$74,A7)/360))^(1/(DAYS360(A7,A8)/360))-1 -> 0.02091318119 | D8: 0.6833333333 | E8: 0.985987428
A9: 2012-08-12 | B9: 0.0208659439 | C9: 0.02091318119 | D9: 0.6833333333 | E9: 0.985987428
A10: 2012-08-30 | B10: 0.02086988023 | C10: =((1+B10)^(DAYS360($B$74,A10)/360)/(1+B9)^(DAYS360($B$74,A9)/360))^(1/(DAYS360(A9,A10)/360))-1 -> 0.02092367837 | D10: 0.7333333333 | E10: 0.9849670755
A11: 2012-10-08 | B11: 0.02087819028 | C11: 0.0209359251 | D11: 0.8388888889 | E11: 0.9828152199
A12: 2013-03-12 | B12: 0.01567735597 | C12: 0.00555511758 | D12: 1.266666667 | E12: 0.9804889218
A13: 2013-03-30 | B13: 0.01506946624 | C13: =((1+B13)^(DAYS360($B$74,A13)/360)/(1+B12)^(DAYS360($B$74,A12)/360))^(1/(DAYS360(A12,A13)/360))-1 -> -0.000209637653 | D13: 1.316666667 | E13: 0.9804992003
A14: 2013-05-05 | B14: 0.01388745844 | C14: -0.001985419659 | D14: 1.413888889 | E14: 0.9806886695
A15: 2013-06-01 | B15: 0.01300939551 | C15: -0.004028029409 | D15: 1.486111111 | E15: 0.9809745826
A16: 2013-07-12 | B16: 0.0116247578 | C16: -0.00627054922 | D16: 1.6 | E16: 0.9816775991
A17: 2013-08-12 | B17: 0.01061160826 | C17: -0.008645287225 | D17: 1.683333333 | E17: 0.9823881714
A18: 2013-08-12 | B18: 0.01061160826 | C18: -0.008645287225 | D18: 1.683333333 | E18: 0.9823881714
A19: 2013-08-30 | B19: 0.01000371854 | C19: =((1+B19)^(DAYS360($B$74,A19)/360)/(1+B18)^(DAYS360($B$74,A18)/360))^(1/(DAYS360(A18,A19)/360))-1 -> -0.01024991617 | D19: 1.733333333 | E19: 0.9828943696
A20: 2014-03-12 | B20: 0.02166146185 | C20: 0.06048648485 | D20: 2.266666667 | E20: 0.952585808
A21: 2014-03-30 | B21: 0.02275437529 | C21: 0.07354727288 | D21: 2.316666667 | E21: 0.9492116248
A22: 2014-05-05 | B22: 0.02487948474 | C22: 0.07684490025 | D22: 2.413888889 | E22: 0.94240384
A23: 2014-06-01 | B23: 0.02645813748 | C23: 0.08064397604 | D23: 2.486111111 | E23: 0.9371398638
A24: 2014-07-12 | B24: 0.02894755142 | C24: 0.08481964338 | D24: 2.6 | E24: 0.9284907493
A25: 2014-08-12 | B25: 0.03076907381 | C25: 0.08924959589 | D25: 2.683333333 | E25: 0.9218996085
A26: 2014-08-12 | B26: 0.03076907381 | C26: 0.08924959589 | D26: 2.683333333 | E26: 0.9218996085
A27: 2015-03-12 | B27: 0.02044632684 | C27: =((1+B27)^(DAYS360($B$74,A27)/360)/(1+B26)^(DAYS360($B$74,A26)/360))^(1/(DAYS360(A26,A27)/360))-1 -> -0.02572269501 | D27: 3.266666667 | E27: 0.9360207045
A28: 2015-03-30 | B28: 0.01956151996 | C28: =((1+B28)^(DAYS360($B$74,A28)/360)/(1+B27)^(DAYS360($B$74,A27)/360))^(1/(DAYS360(A27,A28)/360))-1 -> -0.03661392417 | D28: 3.316666667 | E28: 0.9377680606
A29: 2015-06-01 | B29: 0.01656300774 | C29: =((1+B29)^(DAYS360($B$74,A29)/360)/(1+B28)^(DAYS360($B$74,A28)/360))^(1/(DAYS360(A28,A29)/360))-1 -> -0.04038545328 | D29: 3.486111111 | E29: 0.9443414029
A30: 2015-07-12 | B30: 0.01454761428 | C30: =((1+B30)^(DAYS360($B$74,A30)/360)/(1+B29)^(DAYS360($B$74,A29)/360))^(1/(DAYS360(A29,A30)/360))-1 -> -0.04524736179 | D30: 3.6 | E30: 0.9493344427
A31: 2015-08-12 | B31: 0.01307293614 | C31: =((1+B31)^(DAYS360($B$74,A31)/360)/(1+B30)^(DAYS360($B$74,A30)/360))^(1/(DAYS360(A30,A31)/360))-1 -> -0.0486279469 | D31: 3.683333333 | E31: =1/(1+B31)^D31 -> 0.9532863445
A32: 2015-08-12 | B32: 0.01307293614 | C32: -0.0486279469 | D32: 3.683333333 | E32: 0.9532863445
A33: 2016-03-12 | B33: 0.01345402977 | C33: =((1+B33)^(DAYS360($B$74,A33)/360)/(1+B32)^(DAYS360($B$74,A32)/360))^(1/(DAYS360(A32,A33)/360))-1 -> 0.01586367646 | D33: 4.266666667 | E33: 0.9445741077
A34: 2016-03-30 | B34: 0.01348669493 | C34: 0.01627800432 | D34: 4.316666667 | E34: 0.9438118165
A35: 2016-06-01 | B35: 0.01359739356 | C35: 0.01642156756 | D35: =DAYS360($B$74,A35)/360 -> 4.486111111 | E35: 0.9412105405
A36: 2016-07-12 | B36: 0.01367179755 | C36: 0.01660693779 | D36: 4.6 | E36: 0.9394466607
A37: 2016-08-12 | B37: 0.0141926255 | C37: 0.0433612926 | D37: 4.683333333 | E37: 0.9361294332
A38: 2017-03-12 | B38: 0.01490450493 | C38: 0.02063801963 | D38: 5.266666667 | E38: 0.9250404361
A39: 2017-03-30 | B39: 0.01496552317 | C39: 0.02141336514 | D39: 5.316666667 | E39: 0.9240609986
A40: 2017-06-01 | B40: 0.01517230719 | C40: 0.02168202333 | D40: 5.486111111 | E40: 0.9207084694
A41: 2017-08-12 | B41: 0.01541299024 | C41: 0.02213096589 | D41: 5.683333333 | E41: 0.9167422266
A42: 2018-03-12 | B42: 0.01612486966 | C42: 0.02308678105 | D42: 6.266666667 | E42: =1/(1+B42)^D42 -> 0.9046174479
A43: 2018-03-30 | B43: 0.01627440323 | C43: 0.03519122552 | D43: 6.316666667 | E43: 0.9030544371
A44: 2018-06-01 | B44: 0.01678115587 | C44: 0.03585361036 | D44: 6.486111111 | E44: 0.897680321
A45: 2019-03-12 | B45: 0.01911554097 | C45: 0.0387218313 | D45: 7.266666667 | E45: 0.8714512878
A46: 2019-03-30 | B46: 0.01911554097 | C46: 0.01911554097 | D46: 7.316666667 | E46: 0.8706266259
A47: 2019-06-01 | B47: 0.01911554097 | C47: 0.01911554097 | D47: 7.486111111 | E47: 0.8678377374
A48: 2020-03-30 | B48: 0.01568311994 | C48: -0.01473755975 | D48: 8.316666667 | E48: 0.878605695
A49: 2020-06-01 | B49: 0.01498286013 | C49: -0.01880039199 | D49: 8.486111111 | E49: 0.8814357936
A50: 2021-03-30 | B50: 0.0115504391 | C50: -0.02286162557 | D50: 9.316666667 | E50: 0.898530296
A51: 2021-06-01 | B51: 0.01085017929 | C51: -0.02691574358 | D51: 9.486111111 | E51: 0.9026940211
A52: 2022-03-30 | B52: 0.007417758265 | C52: -0.03096823514 | D52: 10.31666667 | E52: 0.9265899913
A53: 2022-06-01 | B53: 0.02030127109 | C53: 1.211787911 | D53: 10.48611111 | E53: 0.8099770941
A54: 2023-03-30 | B54: 0.01992960743 | C54: 0.01524882693 | D54: 11.31666667 | E54: 0.7998598806
A55: 2024-03-30 | B55: 0.01948211942 | C55: 0.0144317089 | D55: 12.31666667 | E55: 0.7884807559
A56: 2025-03-30 | B56: 0.01903463141 | C56: 0.01353915209 | D56: 13.31666667 | E56: 0.7779479996
A57: 2026-03-30 | B57: 0.0185871434 | C57: 0.01264679285 | D57: 14.31666667 | E57: 0.7682323245
A58: 2027-03-30 | B58: 0.01813965538 | C58: 0.01175463134 | D58: 15.31666667 | E58: 0.7593069513
A59: 2028-03-30 | B59: 0.01769216737 | C59: 0.01086266774 | D59: 16.31666667 | E59: =1/(1+B59)^D59 -> 0.7511474857
A60: 2029-03-30 | B60: 0.01724467936 | C60: 0.009970902224 | D60: 17.31666667 | E60: 0.7437318086
A61: 2030-03-30 | B61: 0.01679719135 | C61: 0.009079334967 | D61: 18.31666667 | E61: 0.7370399757
A62: 2031-03-30 | B62: 0.01634970333 | C62: 0.008187966143 | D62: 19.31666667 | E62: 0.7310541293
A63: 2032-03-30 | B63: 0.01590221532 | C63: 0.007296795924 | D63: 20.31666667 | E63: 0.7257584182
A64: 2033-03-30 | B64: 0.01545472731 | C64: 0.006405824485 | D64: 21.31666667 | E64: 0.7211389288
A65: 2034-03-30 | B65: 0.0150072393 | C65: 0.005515052 | D65: 22.31666667 | E65: 0.7171836238
A66: 2035-03-30 | B66: 0.01455975128 | C66: 0.004624478644 | D66: 23.31666667 | E66: 0.7138822904
A67: 2036-03-30 | B67: 0.01411226327 | C67: 0.003734104592 | D67: 24.31666667 | E67: 0.7112264963
A68: 2037-03-30 | B68: 0.01366477526 | C68: 0.002843930019 | D68: 25.31666667 | E68: =1/(1+B68)^D68 -> 0.7092095539
A69: 2038-03-30 | B69: 0.01321728725 | C69: 0.001953955099 | D69: 26.31666667 | E69: 0.7078264928
A70: 2039-03-30 | B70: 0.01276979923 | C70: 0.001064180009 | D70: 27.31666667 | E70: 0.7070740387
A74: Start Date | B74: 2011-12-06

Sheet Sheet2
